[Event "Titled Tuesday Blitz April 12 Late 2022"]
[White "Kozak, Adam"]
[Black "Zherebtsova, Alexandra"]
[WhiteFideId "753246"]
[BlackFideId "24129518"]
[WhiteElo "2459"]
[BlackElo "2025"]
[Result "1-0"]
[Round "07"]
[TimeControl "180+1"]
[Date "2022.04.13"]
[WhiteClock "0:01:57"]
[BlackClock "0:00:07"]

1. e4 {[%clk 0:03:00]}  e5 {[%clk 0:02:55]} 2. Nf3 {[%clk 0:03:00]}  Nc6 {[%clk 0:02:55]} 3. Bc4 {[%clk 0:03:00]}  Nf6 {[%clk 0:02:54]} 4. Ng5 {[%clk 0:02:59]}  d5 {[%clk 0:02:54]} 5. exd5 {[%clk 0:02:59]}  Na5 {[%clk 0:02:54]} 6. Bb5+ {[%clk 0:03:00]}  c6 {[%clk 0:02:55]} 7. dxc6 {[%clk 0:02:59]}  bxc6 {[%clk 0:02:56]} 8. Bd3 {[%clk 0:03:00]}  Nd5 {[%clk 0:02:55]} 9. h4 {[%clk 0:02:56]}  Nf4 {[%clk 0:02:50]} 10. Qf3 {[%clk 0:02:56]}  Nxd3+ {[%clk 0:02:40]} 11. cxd3 {[%clk 0:02:55]}  f6 {[%clk 0:02:39]} 12. Ne4 {[%clk 0:02:54]}  Ba6 {[%clk 0:02:33]} 13. Rh3 {[%clk 0:02:43]}  Qe7 {[%clk 0:02:04]} 14. b3 {[%clk 0:02:24]}  O-O-O {[%clk 0:02:00]} 15. Ba3 {[%clk 0:02:24]}  Qd7 {[%clk 0:01:24]} 16. Bxf8 {[%clk 0:02:22]}  Qd4 {[%clk 0:01:21]} 17. Nbc3 {[%clk 0:02:16]}  Rhxf8 {[%clk 0:01:21]} 18. Qe3 {[%clk 0:02:12]}  Bxd3 {[%clk 0:01:14]} 19. Qxd4 {[%clk 0:02:11]}  Rxd4 {[%clk 0:01:15]} 20. Nc5 {[%clk 0:02:11]}  Bf5 {[%clk 0:01:09]} 21. Rh2 {[%clk 0:02:09]}  Rfd8 {[%clk 0:01:06]} 22. O-O-O {[%clk 0:02:09]}  Nb7 {[%clk 0:01:03]} 23. Nxb7 {[%clk 0:02:08]}  Kxb7 {[%clk 0:01:03]} 24. f3 {[%clk 0:02:08]}  h6 {[%clk 0:00:56]} 25. g4 {[%clk 0:02:07]}  Bg6 {[%clk 0:00:55]} 26. h5 {[%clk 0:02:07]}  Bh7 {[%clk 0:00:55]} 27. Re2 {[%clk 0:02:07]}  Rd3 {[%clk 0:00:52]} 28. Re3 {[%clk 0:02:08]}  Kb6 {[%clk 0:00:49]} 29. Na4+ {[%clk 0:02:05]}  Kb5 {[%clk 0:00:49]} 30. Nb2 {[%clk 0:02:05]}  Rxe3 {[%clk 0:00:46]} 31. dxe3 {[%clk 0:02:05]}  Rxd1+ {[%clk 0:00:44]} 32. Kxd1 {[%clk 0:02:06]}  Kb4 {[%clk 0:00:45]} 33. Nc4 {[%clk 0:02:06]}  Bg8 {[%clk 0:00:42]} 34. Nd6 {[%clk 0:02:06]}  Ka3 {[%clk 0:00:40]} 35. Kc2 {[%clk 0:02:06]}  Kxa2 {[%clk 0:00:40]} 36. b4 {[%clk 0:02:06]}  Ka3 {[%clk 0:00:40]} 37. Kc3 {[%clk 0:02:06]}  Bd5 {[%clk 0:00:34]} 38. e4 {[%clk 0:02:05]}  Bb3 {[%clk 0:00:30]} 39. Ne8 {[%clk 0:02:05]}  Bd1 {[%clk 0:00:30]} 40. Nxg7 {[%clk 0:02:05]}  Bxf3 {[%clk 0:00:30]} 41. Ne8 {[%clk 0:02:03]}  Bxg4 {[%clk 0:00:30]} 42. Nxf6 {[%clk 0:02:03]}  Bf3 {[%clk 0:00:28]} 43. Kc4 {[%clk 0:02:03]}  Ka4 {[%clk 0:00:19]} 44. Kc5 {[%clk 0:02:03]}  a6 {[%clk 0:00:18]} 45. Kc4 {[%clk 0:01:51]}  a5 {[%clk 0:00:17]} 46. bxa5 {[%clk 0:01:51]}  Kxa5 {[%clk 0:00:18]} 47. Kc5 {[%clk 0:01:52]}  Ka4 {[%clk 0:00:17]} 48. Kxc6 {[%clk 0:01:53]}  Kb4 {[%clk 0:00:17]} 49. Kd6 {[%clk 0:01:53]}  Kc4 {[%clk 0:00:17]} 50. Kxe5 {[%clk 0:01:54]}  Kd3 {[%clk 0:00:17]} 51. Kf5 {[%clk 0:01:53]}  Bxe4+ {[%clk 0:00:13]} 52. Nxe4 {[%clk 0:01:52]}  Kd4 {[%clk 0:00:13]} 53. Nf6 {[%clk 0:01:53]}  Ke3 {[%clk 0:00:06]} 54. Ng4+ {[%clk 0:01:52]}  Kf3 {[%clk 0:00:06]} 55. Nxh6 {[%clk 0:01:52]}  Kg3 {[%clk 0:00:06]} 56. Kg6 {[%clk 0:01:53]}  Kh4 {[%clk 0:00:06]} 57. Nf7 {[%clk 0:01:54]}  Kg4 {[%clk 0:00:06]} 58. h6 {[%clk 0:01:55]}  Kf4 {[%clk 0:00:06]} 59. h7 {[%clk 0:01:56]}  Ke4 {[%clk 0:00:07]} 60. Nh6 {[%clk 0:01:56]}  Kd5 {[%clk 0:00:06]} 61. h8=Q {[%clk 0:01:57]}  Ke6 {[%clk 0:00:07]} 62. Qf6+ {[%clk 0:01:58]}  Kd7 {[%clk 0:00:07]} 63. Nf5 {[%clk 0:01:57]}  Ke8 {[%clk 0:00:07]} 64. Qe7# {[%clk 0:01:57]} 1-0


[Site "https://www.chess.com"]

[Event "Titled Tuesday Blitz April 12 Late 2022"]
[White "Lashkin, Jegor"]
[Black "Andreikin, Dmitry"]
[WhiteFideId "13907808"]
[BlackFideId "4158814"]
[WhiteElo "2368"]
[BlackElo "2736"]
[Result "0-1"]
[Round "07"]
[TimeControl "180+1"]
[Date "2022.04.12"]
[WhiteClock "0:00:05"]
[BlackClock "0:00:14"]

1. d4 {[%clk 0:03:00]}  Nf6 {[%clk 0:02:58]} 2. c4 {[%clk 0:03:01]}  e6 {[%clk 0:02:58]} 3. Nf3 {[%clk 0:03:01]}  d5 {[%clk 0:02:58]} 4. Nc3 {[%clk 0:03:01]}  c6 {[%clk 0:02:57]} 5. e3 {[%clk 0:03:01]}  a6 {[%clk 0:02:56]} 6. b3 {[%clk 0:03:00]}  Bb4 {[%clk 0:02:55]} 7. Bd2 {[%clk 0:03:00]}  Nbd7 {[%clk 0:02:56]} 8. Qc2 {[%clk 0:03:01]}  O-O {[%clk 0:02:56]} 9. Bd3 {[%clk 0:03:01]}  Bd6 {[%clk 0:02:56]} 10. O-O {[%clk 0:03:00]}  e5 {[%clk 0:02:56]} 11. cxd5 {[%clk 0:02:47]}  cxd5 {[%clk 0:02:57]} 12. dxe5 {[%clk 0:02:31]}  Nxe5 {[%clk 0:02:58]} 13. Be2 {[%clk 0:02:25]}  Bg4 {[%clk 0:02:55]} 14. Nd4 {[%clk 0:02:24]}  Rc8 {[%clk 0:02:54]} 15. Bxg4 {[%clk 0:02:21]}  Nexg4 {[%clk 0:02:47]} 16. h3 {[%clk 0:02:21]}  Bh2+ {[%clk 0:01:43]} 17. Kh1 {[%clk 0:02:20]}  Be5 {[%clk 0:01:42]} 18. Qd3 {[%clk 0:01:13]}  Nh6 {[%clk 0:00:54]} 19. Rac1 {[%clk 0:01:07]}  Bb8 {[%clk 0:00:54]} 20. Nf3 {[%clk 0:00:56]}  Qd7 {[%clk 0:00:50]} 21. Rfd1 {[%clk 0:00:37]}  Nf5 {[%clk 0:00:47]} 22. Be1 {[%clk 0:00:36]}  Ne7 {[%clk 0:00:48]} 23. Kg1 {[%clk 0:00:33]}  Rfd8 {[%clk 0:00:48]} 24. Na4 {[%clk 0:00:26]}  Rxc1 {[%clk 0:00:47]} 25. Rxc1 {[%clk 0:00:27]}  Nc6 {[%clk 0:00:46]} 26. Nc5 {[%clk 0:00:26]}  Qe7 {[%clk 0:00:46]} 27. Nxa6 {[%clk 0:00:20]}  Bd6 {[%clk 0:00:47]} 28. b4 {[%clk 0:00:14]}  Ne5 {[%clk 0:00:47]} 29. Nxe5 {[%clk 0:00:11]}  Qxe5 {[%clk 0:00:48]} 30. Nc5 {[%clk 0:00:12]}  Qh2+ {[%clk 0:00:47]} 31. Kf1 {[%clk 0:00:12]}  Rc8 {[%clk 0:00:44]} 32. Qf5 {[%clk 0:00:11]}  Rc7 {[%clk 0:00:44]} 33. Qf3 {[%clk 0:00:10]}  h5 {[%clk 0:00:35]} 34. Ke2 {[%clk 0:00:08]}  Ne4 {[%clk 0:00:19]} 35. Qxh5 {[%clk 0:00:05]}  Qxg2 {[%clk 0:00:17]} 36. Qf3 {[%clk 0:00:06]}  Ng3+ {[%clk 0:00:16]} 37. Qxg3 {[%clk 0:00:04]}  Bxg3 {[%clk 0:00:16]} 38. Rd1 {[%clk 0:00:04]}  Bd6 {[%clk 0:00:16]} 39. Nb3 {[%clk 0:00:04]}  Rc2+ {[%clk 0:00:16]} 40. Rd2 {[%clk 0:00:04]}  Rxd2+ {[%clk 0:00:15]} 41. Bxd2 {[%clk 0:00:05]}  Qxh3 {[%clk 0:00:16]} 42. Nd4 {[%clk 0:00:06]}  Be5 {[%clk 0:00:14]} 43. Nb5 {[%clk 0:00:05]}  Qg4+ {[%clk 0:00:14]} 0-1


[Site "https://www.chess.com"]

[Event "Titled Tuesday Blitz April 12 Late 2022"]
[White "Lewtak, Damian"]
[Black "Przybylski, Wojciech"]
[WhiteFideId "1141724"]
[BlackFideId "1117599"]
[WhiteElo "2618"]
[BlackElo "2445"]
[Result "0-1"]
[Round "07"]
[TimeControl "180+1"]
[Date "2022.04.13"]
[WhiteClock "0:00:17"]
[BlackClock "0:00:05"]

1. d4 {[%clk 0:03:00]}  d5 {[%clk 0:02:57]} 2. a3 {[%clk 0:03:01]}  Nf6 {[%clk 0:02:56]} 3. Nf3 {[%clk 0:03:00]}  Bf5 {[%clk 0:02:55]} 4. Bf4 {[%clk 0:03:00]}  c6 {[%clk 0:02:54]} 5. e3 {[%clk 0:03:00]}  Nbd7 {[%clk 0:02:54]} 6. c4 {[%clk 0:03:00]}  e6 {[%clk 0:02:54]} 7. Nc3 {[%clk 0:03:00]}  Be7 {[%clk 0:02:53]} 8. h3 {[%clk 0:02:56]}  O-O {[%clk 0:02:53]} 9. Bd3 {[%clk 0:02:53]}  Bg6 {[%clk 0:02:51]} 10. O-O {[%clk 0:02:52]}  Re8 {[%clk 0:02:50]} 11. Ne5 {[%clk 0:02:51]}  Bxd3 {[%clk 0:02:34]} 12. Qxd3 {[%clk 0:02:51]}  Nxe5 {[%clk 0:02:32]} 13. Bxe5 {[%clk 0:02:50]}  Nd7 {[%clk 0:02:29]} 14. Bg3 {[%clk 0:02:49]}  Bf8 {[%clk 0:02:27]} 15. Rad1 {[%clk 0:02:48]}  Nf6 {[%clk 0:02:19]} 16. e4 {[%clk 0:02:44]}  dxe4 {[%clk 0:02:17]} 17. Nxe4 {[%clk 0:02:45]}  Nxe4 {[%clk 0:02:13]} 18. Qxe4 {[%clk 0:02:45]}  Be7 {[%clk 0:02:13]} 19. Rd2 {[%clk 0:02:42]}  Bg5 {[%clk 0:02:11]} 20. Rd3 {[%clk 0:02:38]}  Bf6 {[%clk 0:02:10]} 21. Rfd1 {[%clk 0:02:37]}  a5 {[%clk 0:02:08]} 22. b3 {[%clk 0:02:35]}  Qe7 {[%clk 0:02:04]} 23. a4 {[%clk 0:02:34]}  Rad8 {[%clk 0:01:59]} 24. Be5 {[%clk 0:02:34]}  g6 {[%clk 0:01:49]} 25. Kf1 {[%clk 0:02:23]}  Rd7 {[%clk 0:01:31]} 26. Bxf6 {[%clk 0:02:10]}  Qxf6 {[%clk 0:01:31]} 27. d5 {[%clk 0:02:11]}  cxd5 {[%clk 0:01:22]} 28. cxd5 {[%clk 0:02:09]}  e5 {[%clk 0:01:21]} 29. Rc1 {[%clk 0:02:04]}  Red8 {[%clk 0:01:12]} 30. Rc5 {[%clk 0:01:57]}  Qb6 {[%clk 0:00:51]} 31. Rb5 {[%clk 0:01:53]}  Qc7 {[%clk 0:00:41]} 32. g3 {[%clk 0:01:54]}  f5 {[%clk 0:00:29]} 33. Qe1 {[%clk 0:01:54]}  e4 {[%clk 0:00:25]} 34. Rc3 {[%clk 0:01:52]}  Qe5 {[%clk 0:00:24]} 35. Qc1 {[%clk 0:01:34]}  Rxd5 {[%clk 0:00:20]} 36. Rc8 {[%clk 0:01:34]}  Qd4 {[%clk 0:00:11]} 37. Kg2 {[%clk 0:00:39]}  Kg7 {[%clk 0:00:08]} 38. Qc7+ {[%clk 0:00:38]}  R8d7 {[%clk 0:00:08]} 39. Qb8 {[%clk 0:00:36]}  e3 {[%clk 0:00:07]} 40. Rg8+ {[%clk 0:00:35]}  Kh6 {[%clk 0:00:06]} 41. Qf8+ {[%clk 0:00:30]}  Kh5 {[%clk 0:00:06]} 42. g4+ {[%clk 0:00:16]}  fxg4 {[%clk 0:00:06]} 43. Qf4 {[%clk 0:00:17]}  Qxf4 {[%clk 0:00:05]} 0-1


[Site "https://www.chess.com"]

[Event "Titled Tuesday Blitz April 12 Late 2022"]
[White "Martinez Alcantara, Jose Eduardo"]
[Black "Savchenko, Boris"]
[WhiteFideId "3805662"]
[BlackFideId "4147332"]
[WhiteElo "2690"]
[BlackElo "2557"]
[Result "1-0"]
[Round "07"]
[TimeControl "180+1"]
[Date "2022.04.12"]
[WhiteClock "0:02:46"]
[BlackClock "0:01:34"]

1. e4 {[%clk 0:03:00]}  c5 {[%clk 0:02:50]} 2. Nf3 {[%clk 0:03:01]}  d6 {[%clk 0:02:50]} 3. Bb5+ {[%clk 0:03:00]}  Nd7 {[%clk 0:02:48]} 4. O-O {[%clk 0:03:00]}  a6 {[%clk 0:02:47]} 5. Bxd7+ {[%clk 0:03:01]}  Bxd7 {[%clk 0:02:47]} 6. c3 {[%clk 0:03:01]}  Nf6 {[%clk 0:02:47]} 7. Re1 {[%clk 0:03:02]}  e6 {[%clk 0:02:46]} 8. d4 {[%clk 0:03:02]}  Be7 {[%clk 0:02:45]} 9. e5 {[%clk 0:03:01]}  dxe5 {[%clk 0:02:45]} 10. dxe5 {[%clk 0:03:02]}  Nd5 {[%clk 0:02:43]} 11. c4 {[%clk 0:03:02]}  Nc7 {[%clk 0:02:43]} 12. Nc3 {[%clk 0:03:02]}  Bc6 {[%clk 0:02:39]} 13. Qe2 {[%clk 0:03:02]}  O-O {[%clk 0:02:35]} 14. Ne4 {[%clk 0:03:02]}  b5 {[%clk 0:02:27]} 15. b3 {[%clk 0:03:01]}  Kh8 {[%clk 0:02:13]} 16. Bf4 {[%clk 0:03:01]}  a5 {[%clk 0:02:02]} 17. Rad1 {[%clk 0:03:00]}  Qb8 {[%clk 0:02:01]} 18. Bg5 {[%clk 0:02:59]}  Qe8 {[%clk 0:01:52]} 19. Nd6 {[%clk 0:02:55]}  Bxd6 {[%clk 0:01:48]} 20. exd6 {[%clk 0:02:55]}  Na6 {[%clk 0:01:45]} 21. Be7 {[%clk 0:02:53]}  Rg8 {[%clk 0:01:40]} 22. Ne5 {[%clk 0:02:54]}  bxc4 {[%clk 0:01:36]} 23. Qh5 {[%clk 0:02:47]}  g6 {[%clk 0:01:36]} 24. Bf6+ {[%clk 0:02:47]}  Rg7 {[%clk 0:01:36]} 25. Qh6 {[%clk 0:02:47]}  Qg8 {[%clk 0:01:36]} 26. Nxc6 {[%clk 0:02:47]}  Qe8 {[%clk 0:01:34]} 27. Qxg7# {[%clk 0:02:46]} 1-0


[Site "https://www.chess.com"]

[Event "Titled Tuesday Blitz April 12 Late 2022"]
[White "Martinez Reyes, Pedro Ramon"]
[Black "Bordi, Kevin"]
[WhiteFideId "3901807"]
[BlackFideId "621862"]
[WhiteElo "2410"]
[BlackElo "2772"]
[Result "1-0"]
[Round "07"]
[TimeControl "180+1"]
[Date "2022.04.12"]
[WhiteClock "0:01:09"]
[BlackClock "0:00:36"]

1. e3 {[%clk 0:03:00]}  d5 {[%clk 0:02:58]} 2. d4 {[%clk 0:03:01]}  Nf6 {[%clk 0:02:58]} 3. c4 {[%clk 0:03:01]}  c6 {[%clk 0:02:56]} 4. Nf3 {[%clk 0:03:02]}  Bf5 {[%clk 0:02:56]} 5. Bd2 {[%clk 0:03:00]}  e6 {[%clk 0:02:56]} 6. Qb3 {[%clk 0:03:00]}  Qb6 {[%clk 0:02:55]} 7. c5 {[%clk 0:03:00]}  Qxb3 {[%clk 0:02:55]} 8. axb3 {[%clk 0:03:00]}  Nbd7 {[%clk 0:02:55]} 9. b4 {[%clk 0:03:01]}  Ne4 {[%clk 0:02:55]} 10. b5 {[%clk 0:02:58]}  Be7 {[%clk 0:02:52]} 11. Nc3 {[%clk 0:02:56]}  O-O {[%clk 0:02:51]} 12. bxc6 {[%clk 0:02:48]}  bxc6 {[%clk 0:02:51]} 13. Nxe4 {[%clk 0:02:39]}  Bxe4 {[%clk 0:02:50]} 14. Ba6 {[%clk 0:02:32]}  Rfb8 {[%clk 0:02:48]} 15. Bc3 {[%clk 0:02:32]}  Bf6 {[%clk 0:02:35]} 16. Be2 {[%clk 0:01:51]}  a5 {[%clk 0:02:26]} 17. Kd2 {[%clk 0:01:43]}  a4 {[%clk 0:02:21]} 18. Ra3 {[%clk 0:01:36]}  Rb3 {[%clk 0:01:58]} 19. Rha1 {[%clk 0:01:32]}  Rab8 {[%clk 0:01:42]} 20. Rxb3 {[%clk 0:01:29]}  axb3 {[%clk 0:01:38]} 21. Ra7 {[%clk 0:01:26]}  Nf8 {[%clk 0:01:25]} 22. Rc7 {[%clk 0:01:25]}  g5 {[%clk 0:01:03]} 23. Rxc6 {[%clk 0:01:24]}  g4 {[%clk 0:01:03]} 24. Ne1 {[%clk 0:01:23]}  h5 {[%clk 0:00:55]} 25. Rb6 {[%clk 0:01:21]}  Rxb6 {[%clk 0:00:47]} 26. cxb6 {[%clk 0:01:22]}  Nd7 {[%clk 0:00:47]} 27. b7 {[%clk 0:01:18]}  Kf8 {[%clk 0:00:47]} 28. Bb5 {[%clk 0:01:12]}  Nb8 {[%clk 0:00:46]} 29. Ba5 {[%clk 0:01:12]}  e5 {[%clk 0:00:37]} 30. Bc7 {[%clk 0:01:12]}  exd4 {[%clk 0:00:38]} 31. Bxb8 {[%clk 0:01:11]}  dxe3+ {[%clk 0:00:37]} 32. fxe3 {[%clk 0:01:10]}  d4 {[%clk 0:00:36]} 33. Bd6+ {[%clk 0:01:10]}  Kg7 {[%clk 0:00:36]} 34. b8=Q {[%clk 0:01:09]} 1-0


[Site "https://www.chess.com"]

[Event "Titled Tuesday Blitz April 12 Late 2022"]
[White "Melkumyan, Hrant"]
[Black "Santos Ruiz, Miguel"]
[WhiteFideId "13302485"]
[BlackFideId "22291482"]
[WhiteElo "2604"]
[BlackElo "2486"]
[Result "1-0"]
[Round "07"]
[TimeControl "180+1"]
[Date "2022.04.12"]
[WhiteClock "0:00:51"]
[BlackClock "0:00:05"]

1. e4 {[%clk 0:02:57]}  e5 {[%clk 0:02:59]} 2. Nf3 {[%clk 0:02:56]}  Nc6 {[%clk 0:02:59]} 3. Bc4 {[%clk 0:02:56]}  Nf6 {[%clk 0:02:59]} 4. d3 {[%clk 0:02:54]}  Bc5 {[%clk 0:02:58]} 5. O-O {[%clk 0:02:53]}  O-O {[%clk 0:02:57]} 6. h3 {[%clk 0:02:53]}  d6 {[%clk 0:02:55]} 7. a4 {[%clk 0:02:54]}  Be6 {[%clk 0:02:51]} 8. Bxe6 {[%clk 0:02:49]}  fxe6 {[%clk 0:02:52]} 9. a5 {[%clk 0:02:50]}  d5 {[%clk 0:02:48]} 10. Nbd2 {[%clk 0:02:46]}  Bd6 {[%clk 0:02:35]} 11. c3 {[%clk 0:02:44]}  Nb8 {[%clk 0:02:19]} 12. b4 {[%clk 0:02:40]}  Nbd7 {[%clk 0:02:18]} 13. a6 {[%clk 0:02:36]}  b5 {[%clk 0:02:10]} 14. Qb3 {[%clk 0:02:31]}  c6 {[%clk 0:02:09]} 15. c4 {[%clk 0:02:28]}  Rb8 {[%clk 0:02:01]} 16. c5 {[%clk 0:02:18]}  Bc7 {[%clk 0:01:59]} 17. Bb2 {[%clk 0:02:18]}  Qe8 {[%clk 0:01:53]} 18. Rae1 {[%clk 0:02:16]}  Qh5 {[%clk 0:01:52]} 19. Qd1 {[%clk 0:02:09]}  Rbe8 {[%clk 0:01:48]} 20. Nb3 {[%clk 0:02:09]}  h6 {[%clk 0:01:40]} 21. Nh2 {[%clk 0:01:58]}  Qg6 {[%clk 0:01:28]} 22. Bc1 {[%clk 0:01:58]}  Rf7 {[%clk 0:01:23]} 23. Bd2 {[%clk 0:01:56]}  Kh7 {[%clk 0:01:15]} 24. Qe2 {[%clk 0:01:48]}  Nb8 {[%clk 0:01:05]} 25. g3 {[%clk 0:01:39]}  Rd8 {[%clk 0:00:54]} 26. Kg2 {[%clk 0:01:38]}  Nbd7 {[%clk 0:00:41]} 27. Bc3 {[%clk 0:01:35]}  Rdf8 {[%clk 0:00:40]} 28. Ng4 {[%clk 0:01:28]}  Nh5 {[%clk 0:00:39]} 29. Bd2 {[%clk 0:01:21]}  Nhf6 {[%clk 0:00:34]} 30. Bc1 {[%clk 0:01:19]}  Nxg4 {[%clk 0:00:32]} 31. Qxg4 {[%clk 0:01:19]}  Qxg4 {[%clk 0:00:30]} 32. hxg4 {[%clk 0:01:19]}  Kg6 {[%clk 0:00:20]} 33. f3 {[%clk 0:01:19]}  Kf6 {[%clk 0:00:21]} 34. Bb2 {[%clk 0:01:17]}  Ke7 {[%clk 0:00:21]} 35. exd5 {[%clk 0:01:14]}  exd5 {[%clk 0:00:20]} 36. Nd4 {[%clk 0:01:14]}  Rf6 {[%clk 0:00:18]} 37. Nf5+ {[%clk 0:01:12]}  Kf7 {[%clk 0:00:18]} 38. f4 {[%clk 0:01:10]}  Re8 {[%clk 0:00:15]} 39. fxe5 {[%clk 0:01:04]}  Nxe5 {[%clk 0:00:15]} 40. Nd6+ {[%clk 0:00:51]}  Bxd6 {[%clk 0:00:15]} 41. cxd6 {[%clk 0:00:52]}  Rxf1 {[%clk 0:00:05]} 42. Rxf1+ {[%clk 0:00:51]} 1-0


[Site "https://www.chess.com"]

[Event "Titled Tuesday Blitz April 12 Late 2022"]
[White "Mikhalsky, Vladimir"]
[Black "Rego, Vinicius V. de Almeida"]
[WhiteFideId "14144352"]
[BlackFideId "2106485"]
[WhiteElo "2301"]
[BlackElo "2345"]
[Result "1-0"]
[Round "07"]
[TimeControl "180+1"]
[Date "2022.04.13"]
[WhiteClock "0:01:18"]
[BlackClock "0:01:19"]

1. e4 {[%clk 0:02:56]}  c5 {[%clk 0:03:00]} 2. Nf3 {[%clk 0:02:55]}  d6 {[%clk 0:03:00]} 3. Bb5+ {[%clk 0:02:54]}  Nd7 {[%clk 0:03:00]} 4. d4 {[%clk 0:02:52]}  cxd4 {[%clk 0:03:01]} 5. Qxd4 {[%clk 0:02:49]}  Nf6 {[%clk 0:03:00]} 6. O-O {[%clk 0:02:47]}  g6 {[%clk 0:02:59]} 7. Nc3 {[%clk 0:02:23]}  Bg7 {[%clk 0:02:59]} 8. Re1 {[%clk 0:02:22]}  O-O {[%clk 0:02:59]} 9. a4 {[%clk 0:02:21]}  Nc5 {[%clk 0:02:53]} 10. Qe3 {[%clk 0:02:21]}  a6 {[%clk 0:02:51]} 11. Bf1 {[%clk 0:02:19]}  Ng4 {[%clk 0:02:38]} 12. Qf4 {[%clk 0:02:14]}  Bxc3 {[%clk 0:02:38]} 13. bxc3 {[%clk 0:02:13]}  Be6 {[%clk 0:02:23]} 14. Nd4 {[%clk 0:02:02]}  Ne5 {[%clk 0:02:18]} 15. Qh4 {[%clk 0:02:00]}  Rc8 {[%clk 0:02:08]} 16. f4 {[%clk 0:01:59]}  Nc6 {[%clk 0:02:02]} 17. f5 {[%clk 0:01:57]}  Bd7 {[%clk 0:02:01]} 18. Re3 {[%clk 0:01:48]}  f6 {[%clk 0:01:49]} 19. Bc4+ {[%clk 0:01:40]}  Kg7 {[%clk 0:01:31]} 20. Qxh7+ {[%clk 0:01:19]}  Kxh7 {[%clk 0:01:24]} 21. Rh3+ {[%clk 0:01:18]}  Kg7 {[%clk 0:01:23]} 22. Bh6+ {[%clk 0:01:18]}  Kh7 {[%clk 0:01:19]} 23. Bxf8# {[%clk 0:01:18]} 1-0


[Site "https://www.chess.com"]

[Event "Titled Tuesday Blitz April 12 Late 2022"]
[White "Naroditsky, Daniel"]
[Black "Holt, Conrad"]
[WhiteFideId "2026961"]
[BlackFideId "2034387"]
[WhiteElo "2608"]
[BlackElo "2586"]
[Result "0-1"]
[Round "07"]
[TimeControl "180+1"]
[Date "2022.04.12"]
[WhiteClock "0:00:01"]
[BlackClock "0:00:03"]

1. d4 {[%clk 0:03:00]}  d5 {[%clk 0:02:37]} 2. Bf4 {[%clk 0:02:58]}  c5 {[%clk 0:02:36]} 3. e3 {[%clk 0:02:59]}  Nc6 {[%clk 0:02:36]} 4. Nc3 {[%clk 0:02:58]}  cxd4 {[%clk 0:02:36]} 5. exd4 {[%clk 0:02:58]}  Bf5 {[%clk 0:02:36]} 6. Nf3 {[%clk 0:02:56]}  e6 {[%clk 0:02:36]} 7. Ne5 {[%clk 0:02:56]}  Bd6 {[%clk 0:02:33]} 8. Nxc6 {[%clk 0:02:14]}  bxc6 {[%clk 0:02:33]} 9. Bxd6 {[%clk 0:02:12]}  Qxd6 {[%clk 0:02:33]} 10. Bd3 {[%clk 0:02:12]}  Ne7 {[%clk 0:02:00]} 11. O-O {[%clk 0:02:12]}  Qb4 {[%clk 0:01:56]} 12. Ne2 {[%clk 0:01:23]}  Qxb2 {[%clk 0:01:52]} 13. Rb1 {[%clk 0:01:17]}  Qa3 {[%clk 0:01:45]} 14. Rb7 {[%clk 0:01:12]}  O-O {[%clk 0:01:42]} 15. Qc1 {[%clk 0:01:02]}  Qd6 {[%clk 0:01:29]} 16. Qf4 {[%clk 0:00:57]}  Qd8 {[%clk 0:01:28]} 17. Rfb1 {[%clk 0:00:41]}  Bxd3 {[%clk 0:01:27]} 18. cxd3 {[%clk 0:00:42]}  Nf5 {[%clk 0:00:48]} 19. g3 {[%clk 0:00:43]}  Nd6 {[%clk 0:00:34]} 20. R7b2 {[%clk 0:00:43]}  Qe7 {[%clk 0:00:26]} 21. Nc3 {[%clk 0:00:40]}  Nf5 {[%clk 0:00:22]} 22. Rb7 {[%clk 0:00:33]}  Qa3 {[%clk 0:00:21]} 23. R1b3 {[%clk 0:00:34]}  Qa6 {[%clk 0:00:20]} 24. g4 {[%clk 0:00:31]}  Nh4 {[%clk 0:00:18]} 25. Qg3 {[%clk 0:00:27]}  Ng6 {[%clk 0:00:18]} 26. h4 {[%clk 0:00:25]}  Rae8 {[%clk 0:00:05]} 27. h5 {[%clk 0:00:25]}  Ne7 {[%clk 0:00:06]} 28. Rd7 {[%clk 0:00:13]}  Nc8 {[%clk 0:00:03]} 29. Rbb7 {[%clk 0:00:09]}  Qa3 {[%clk 0:00:02]} 30. Ne2 {[%clk 0:00:09]}  Qxa2 {[%clk 0:00:01]} 31. Nf4 {[%clk 0:00:09]}  Qa1+ {[%clk 0:00:02]} 32. Kg2 {[%clk 0:00:10]}  Qxd4 {[%clk 0:00:02]} 33. h6 {[%clk 0:00:11]}  g6 {[%clk 0:00:01]} 34. Nh3 {[%clk 0:00:05]}  Qf6 {[%clk 0:00:02]} 35. Qc7 {[%clk 0:00:03]}  e5 {[%clk 0:00:02]} 36. g5 {[%clk 0:00:02]}  Qf5 {[%clk 0:00:01]} 37. f3 {[%clk 0:00:02]}  e4 {[%clk 0:00:02]} 38. dxe4 {[%clk 0:00:02]}  dxe4 {[%clk 0:00:02]} 39. fxe4 {[%clk 0:00:03]}  Qxe4+ {[%clk 0:00:02]} 40. Kh2 {[%clk 0:00:01]}  Qc2+ {[%clk 0:00:03]} 41. Kg3 {[%clk 0:00:01]}  Re3+ {[%clk 0:00:03]} 0-1


[Site "https://www.chess.com"]